[Event "*** SCC Grand Prix: Titled Tuesday Blitz"]
[Site "Chess.com"]
[Date "2020.07.21"]
[Round "6"]
[White "Klaus1995"]
[Black "Zarinur"]
[Result "0-1"]
[WhiteElo "1889"]
[BlackElo "2098"]
[TimeControl "180+1"]
[EndTime "11:10:02 PDT"]
[Termination "Zarinur won by checkmate"]

1. e4 {[%clk 0:03:00.9]} 1... e5 {[%clk 0:02:59.6]} 2. Nf3 {[%clk 0:02:59.8]}
2... Nc6 {[%clk 0:02:59.4]} 3. Bc4 {[%clk 0:02:56.6]} 3... Bc5 {[%clk 0:02:58]}
4. c3 {[%clk 0:02:55]} 4... Nf6 {[%clk 0:02:55.6]} 5. d3 {[%clk 0:02:55.1]} 5...
h6 {[%clk 0:02:54.4]} 6. Be3 {[%clk 0:02:48.4]} 6... d6 {[%clk 0:02:45.4]} 7. h3
{[%clk 0:02:47]} 7... O-O {[%clk 0:02:44.1]} 8. O-O {[%clk 0:02:44.6]} 8... Bb6
{[%clk 0:02:33.9]} 9. Nbd2 {[%clk 0:02:42.9]} 9... Be6 {[%clk 0:02:31.2]} 10.
Re1 {[%clk 0:02:33.8]} 10... Qe7 {[%clk 0:02:29.4]} 11. a4 {[%clk 0:02:14]}
11... Nh7 {[%clk 0:02:17]} 12. b4 {[%clk 0:02:06]} 12... Bxe3 {[%clk 0:02:14.7]}
13. Rxe3 {[%clk 0:02:03.7]} 13... f5 {[%clk 0:02:10.8]} 14. exf5 {[%clk
0:02:03.9]} 14... Rxf5 {[%clk 0:02:08.9]} 15. d4 {[%clk 0:01:57.9]} 15... Bxc4
{[%clk 0:01:57.2]} 16. Nxc4 {[%clk 0:01:57.1]} 16... e4 {[%clk 0:01:56.7]} 17.
d5 {[%clk 0:01:38.4]} 17... Nd8 {[%clk 0:01:51.2]} 18. Nfd2 {[%clk 0:01:37.7]}
18... Rxd5 {[%clk 0:01:46]} 19. Rxe4 {[%clk 0:01:34.8]} 19... Qxe4 {[%clk
0:01:44.5]} 20. Nxe4 {[%clk 0:01:30.5]} 20... Rxd1+ {[%clk 0:01:43.5]} 21. Rxd1
{[%clk 0:01:31.4]} 21... Nf7 {[%clk 0:01:42.7]} 22. Na5 {[%clk 0:01:27.8]} 22...
b6 {[%clk 0:01:35.4]} 23. Nc6 {[%clk 0:01:26.5]} 23... Re8 {[%clk 0:01:35.5]}
24. f3 {[%clk 0:01:25.3]} 24... a6 {[%clk 0:01:18.3]} 25. Nd4 {[%clk 0:01:18.3]}
25... Nf8 {[%clk 0:01:17]} 26. b5 {[%clk 0:01:11.9]} 26... a5 {[%clk 0:01:13.6]}
27. Kf2 {[%clk 0:01:05.7]} 27... Ne6 {[%clk 0:01:13]} 28. Nxe6 {[%clk
0:01:05.2]} 28... Rxe6 {[%clk 0:01:13.9]} 29. c4 {[%clk 0:01:03.9]} 29... Ne5
{[%clk 0:01:12.6]} 30. Rd4 {[%clk 0:01:03.1]} 30... Kf8 {[%clk 0:01:07.7]} 31.
f4 {[%clk 0:01:03.3]} 31... Nd3+ {[%clk 0:01:00.9]} 32. Kf3 {[%clk 0:00:48.5]}
32... Nb4 {[%clk 0:00:59.6]} 33. g4 {[%clk 0:00:45.4]} 33... Kf7 {[%clk
0:00:52.4]} 34. g5 {[%clk 0:00:44.4]} 34... Re8 {[%clk 0:00:48.5]} 35. h4 {[%clk
0:00:43.6]} 35... hxg5 {[%clk 0:00:46.1]} 36. hxg5 {[%clk 0:00:43.3]} 36... Kg6
{[%clk 0:00:44.1]} 37. Kg4 {[%clk 0:00:40.5]} 37... Nc2 {[%clk 0:00:40.9]} 38.
f5+ {[%clk 0:00:35.1]} 38... Kf7 {[%clk 0:00:37.9]} 39. Nxd6+ {[%clk 0:00:34.9]}
39... cxd6 {[%clk 0:00:36.7]} 40. Rxd6 {[%clk 0:00:35.8]} 40... Ne3+ {[%clk
0:00:36.3]} 41. Kf4 {[%clk 0:00:34.4]} 41... Nxc4 {[%clk 0:00:36.5]} 42. Rc6
{[%clk 0:00:26.2]} 42... Nd2 {[%clk 0:00:32.6]} 43. Rxb6 {[%clk 0:00:26]} 43...
Re4+ {[%clk 0:00:32.2]} 44. Kg3 {[%clk 0:00:24.8]} 44... Rxa4 {[%clk 0:00:31.7]}
45. Rb7+ {[%clk 0:00:22.9]} 45... Kf8 {[%clk 0:00:30.6]} 46. Ra7 {[%clk
0:00:21.1]} 46... Ne4+ {[%clk 0:00:29.5]} 47. Kf4 {[%clk 0:00:20.7]} 47... Nd6+
{[%clk 0:00:29.3]} 48. Ke5 {[%clk 0:00:21.1]} 48... Nxb5 {[%clk 0:00:29.4]} 49.
Ra8+ {[%clk 0:00:20.1]} 49... Kf7 {[%clk 0:00:26.6]} 50. g6+ {[%clk 0:00:19.1]}
50... Ke7 {[%clk 0:00:26.6]} 51. Rb8 {[%clk 0:00:19.1]} 51... Nc7 {[%clk
0:00:25.6]} 52. Rb7 {[%clk 0:00:19.1]} 52... Kd7 {[%clk 0:00:23.6]} 53. f6
{[%clk 0:00:19]} 53... gxf6+ {[%clk 0:00:23.2]} 54. Kxf6 {[%clk 0:00:19.5]}
54... Kc6 {[%clk 0:00:20.6]} 55. Ra7 {[%clk 0:00:19]} 55... Nd5+ {[%clk
0:00:20]} 56. Ke6 {[%clk 0:00:17.3]} 56... Nf4+ {[%clk 0:00:19.3]} 57. Kf6
{[%clk 0:00:16.5]} 57... Kb6 {[%clk 0:00:19.1]} 58. Ra8 {[%clk 0:00:16]} 58...
Nxg6 {[%clk 0:00:14.4]} 59. Kxg6 {[%clk 0:00:15.3]} 59... Re4 {[%clk 0:00:11.6]}
60. Kf5 {[%clk 0:00:14.4]} 60... Re1 {[%clk 0:00:11.1]} 61. Rb8+ {[%clk
0:00:13.2]} 61... Kc5 {[%clk 0:00:11.1]} 62. Rc8+ {[%clk 0:00:12.6]} 62... Kb4
{[%clk 0:00:10.9]} 63. Rb8+ {[%clk 0:00:12.7]} 63... Ka3 {[%clk 0:00:10.8]} 64.
Rb5 {[%clk 0:00:10.8]} 64... a4 {[%clk 0:00:10.7]} 65. Kf4 {[%clk 0:00:10.2]}
65... Ka2 {[%clk 0:00:08.6]} 66. Kf3 {[%clk 0:00:10.2]} 66... a3 {[%clk
0:00:08.2]} 67. Kf2 {[%clk 0:00:10.3]} 67... Rb1 {[%clk 0:00:05.9]} 68. Ra5
{[%clk 0:00:08.5]} 68... Rb3 {[%clk 0:00:03.8]} 69. Ke2 {[%clk 0:00:07.6]} 69...
Kb1 {[%clk 0:00:04.1]} 70. Kd2 {[%clk 0:00:04.7]} 70... a2 {[%clk 0:00:04.4]}
71. Rh5 {[%clk 0:00:02.1]} 71... a1=Q {[%clk 0:00:03.7]} 72. Rh1+ {[%clk
0:00:03]} 72... Kb2 {[%clk 0:00:04.1]} 73. Rxa1 {[%clk 0:00:03.4]} 73... Kxa1
{[%clk 0:00:05]} 74. Kc2 {[%clk 0:00:02.1]} 74... Rb8 {[%clk 0:00:05.5]} 75. Kd3
{[%clk 0:00:02.5]} 75... Kb2 {[%clk 0:00:05.3]} 76. Kc4 {[%clk 0:00:03.4]} 76...
Rb7 {[%clk 0:00:04.8]} 77. Kd5 {[%clk 0:00:04.3]} 77... Rc7 {[%clk 0:00:04.7]}
78. Ke6 {[%clk 0:00:05.2]} 78... Rc5 {[%clk 0:00:04.1]} 79. Kd6 {[%clk
0:00:04.9]} 79... Rh5 {[%clk 0:00:03.9]} 80. Ke6 {[%clk 0:00:05.3]} 80... Kc3
{[%clk 0:00:04.8]} 81. Kd6 {[%clk 0:00:05.8]} 81... Ra5 {[%clk 0:00:04.7]} 82.
Kc6 {[%clk 0:00:06]} 82... Rh5 {[%clk 0:00:05.4]} 83. Kd6 {[%clk 0:00:04.7]}
83... Kc4 {[%clk 0:00:06.2]} 84. Ke6 {[%clk 0:00:05.6]} 84... Kd4 {[%clk
0:00:06.9]} 85. Kf6 {[%clk 0:00:06.5]} 85... Ke4 {[%clk 0:00:07.8]} 86. Kg6
{[%clk 0:00:07.4]} 86... Ra5 {[%clk 0:00:08.7]} 87. Kf6 {[%clk 0:00:07.5]} 87...
Rb5 {[%clk 0:00:07.2]} 88. Kg6 {[%clk 0:00:04.3]} 88... Kf4 {[%clk 0:00:06.9]}
89. Kf6 {[%clk 0:00:05.2]} 89... Rb6+ {[%clk 0:00:05.7]} 90. Ke7 {[%clk
0:00:06.1]} 90... Kf5 {[%clk 0:00:05.6]} 91. Kd7 {[%clk 0:00:07]} 91... Ke5
{[%clk 0:00:05.8]} 92. Kc7 {[%clk 0:00:07.4]} 92... Rh6 {[%clk 0:00:05.9]} 93.
Kb7 {[%clk 0:00:08]} 93... Kd5 {[%clk 0:00:06]} 94. Ka7 {[%clk 0:00:08.9]} 94...
Kc5 {[%clk 0:00:06.1]} 95. Kb7 {[%clk 0:00:09.4]} 95... Rg6 {[%clk 0:00:05.6]}
96. Ka7 {[%clk 0:00:09]} 96... Kb5 {[%clk 0:00:05.2]} 97. Kb7 {[%clk 0:00:09.5]}
97... Rg7+ {[%clk 0:00:06.1]} 98. Kc8 {[%clk 0:00:08.6]} 98... Kb6 {[%clk
0:00:06.1]} 99. Kd8 {[%clk 0:00:08.8]} 99... Kc6 {[%clk 0:00:06.1]} 100. Ke8
{[%clk 0:00:09.7]} 100... Kd6 {[%clk 0:00:06.2]} 101. Kf8 {[%clk 0:00:10.6]}
101... Ra7 {[%clk 0:00:06.3]} 102. Kg8 {[%clk 0:00:11.5]} 102... Ke6 {[%clk
0:00:06.3]} 103. Kh8 {[%clk 0:00:11.9]} 103... Kf6 {[%clk 0:00:06.3]} 104. Kg8
{[%clk 0:00:12.3]} 104... Rb7 {[%clk 0:00:06.5]} 105. Kh8 {[%clk 0:00:11.7]}
105... Kg6 {[%clk 0:00:06.4]} 106. Kg8 {[%clk 0:00:12]} 106... Rb8# {[%clk
0:00:07.3]} 0-1

[Event "*** SCC Grand Prix: Titled Tuesday Blitz"]
[Site "Chess.com"]
[Date "2020.07.21"]
[Round "7"]
[White "PavelShkapenko"]
[Black "Tactictic"]
[Result "1-0"]
[WhiteElo "2637"]
[BlackElo "2393"]
[TimeControl "180+1"]
[EndTime "11:12:10 PDT"]
[Termination "PavelShkapenko won by resignation"]

1. e4 {[%clk 0:03:00.9]} 1... c5 {[%clk 0:02:59.7]} 2. c3 {[%clk 0:03:00.6]}
2... Nf6 {[%clk 0:02:57.9]} 3. e5 {[%clk 0:03:01]} 3... Nd5 {[%clk 0:02:58.6]}
4. d4 {[%clk 0:03:01.5]} 4... cxd4 {[%clk 0:02:58.7]} 5. cxd4 {[%clk 0:03:02]}
5... Nc6 {[%clk 0:02:58.5]} 6. Nc3 {[%clk 0:03:00.7]} 6... Nxc3 {[%clk
0:02:52.9]} 7. bxc3 {[%clk 0:03:00.9]} 7... d6 {[%clk 0:02:53.2]} 8. Nf3 {[%clk
0:03:01.3]} 8... dxe5 {[%clk 0:02:50]} 9. d5 {[%clk 0:03:01.2]} 9... Na5 {[%clk
0:02:45.7]} 10. Bb5+ {[%clk 0:02:40.7]} 10... Bd7 {[%clk 0:02:44.7]} 11. Qa4
{[%clk 0:02:41]} 11... b6 {[%clk 0:02:03.5]} 12. Nxe5 {[%clk 0:02:39.1]} 1-0

[Event "*** SCC Grand Prix: Titled Tuesday Blitz"]
[Site "Chess.com"]
[Date "2020.07.21"]
[Round "7"]
[White "Brave_spirit12"]
[Black "markberk"]
[Result "1/2-1/2"]
[WhiteElo "2491"]
[BlackElo "2349"]
[TimeControl "180+1"]
[EndTime "11:12:21 PDT"]
[Termination "Game drawn by repetition"]

1. e4 {[%clk 0:03:00.9]} 1... e5 {[%clk 0:02:58.2]} 2. Nf3 {[%clk 0:03:00.5]}
2... Nc6 {[%clk 0:02:58]} 3. Bc4 {[%clk 0:03:00.6]} 3... Nf6 {[%clk 0:02:56.9]}
4. O-O {[%clk 0:02:59]} 4... Nxe4 {[%clk 0:02:54.2]} 5. d4 {[%clk 0:02:54.4]}
5... d5 {[%clk 0:02:51.6]} 6. Bb5 {[%clk 0:02:52.8]} 6... exd4 {[%clk
0:02:47.3]} 7. Nxd4 {[%clk 0:02:53.7]} 7... Bd7 {[%clk 0:02:45.6]} 8. Bxc6
{[%clk 0:02:52.2]} 8... bxc6 {[%clk 0:02:42.7]} 9. Re1 {[%clk 0:02:49.5]} 9...
Bd6 {[%clk 0:02:30.8]} 10. f3 {[%clk 0:02:47.1]} 10... Bxh2+ {[%clk 0:02:23.9]}
11. Kxh2 {[%clk 0:02:20.6]} 11... Qh4+ {[%clk 0:02:22.1]} 12. Kg1 {[%clk
0:02:21]} 12... Qf2+ {[%clk 0:02:21.7]} 13. Kh2 {[%clk 0:02:20.9]} 13... Qh4+
{[%clk 0:02:20.3]} 14. Kg1 {[%clk 0:02:20.8]} 14... Qf2+ {[%clk 0:02:20]} 15.
Kh2 {[%clk 0:02:20.9]} 15... Qh4+ {[%clk 0:02:19.3]} 1/2-1/2

[Event "*** SCC Grand Prix: Titled Tuesday Blitz"]
[Site "Chess.com"]
[Date "2020.07.21"]
[Round "7"]
[White "ikhasu"]
[Black "RestartingChess"]
[Result "0-1"]
[WhiteElo "2385"]
[BlackElo "2522"]
[TimeControl "180+1"]
[EndTime "11:12:31 PDT"]
[Termination "RestartingChess won by resignation"]

1. e4 {[%clk 0:03:00.7]} 1... d5 {[%clk 0:02:55.9]} 2. exd5 {[%clk 0:02:58.3]}
2... Qxd5 {[%clk 0:02:56.8]} 3. d4 {[%clk 0:02:58.8]} 3... Nf6 {[%clk
0:02:56.4]} 4. Nc3 {[%clk 0:02:56.7]} 4... Qd6 {[%clk 0:02:56.1]} 5. Nf3 {[%clk
0:02:53.4]} 5... Nc6 {[%clk 0:02:56.3]} 6. Nb5 {[%clk 0:02:50.5]} 6... Qd8
{[%clk 0:02:56.4]} 7. Bf4 {[%clk 0:02:50]} 7... Nd5 {[%clk 0:02:56.8]} 8. Bg3
{[%clk 0:02:50.1]} 8... a6 {[%clk 0:02:56.8]} 9. Na3 {[%clk 0:02:49.9]} 9... Bg4
{[%clk 0:02:51.7]} 10. c3 {[%clk 0:02:49.1]} 10... e6 {[%clk 0:02:48.6]} 11. h3
{[%clk 0:02:48.2]} 11... Bh5 {[%clk 0:02:29.9]} 12. Be2 {[%clk 0:02:48.1]} 12...
Bxa3 {[%clk 0:02:28.7]} 13. bxa3 {[%clk 0:02:44.1]} 13... Nxc3 {[%clk
0:02:29.2]} 14. Qb3 {[%clk 0:02:38.5]} 14... Nxe2 {[%clk 0:02:28.8]} 15. Qxb7
{[%clk 0:02:28.7]} 15... Bxf3 {[%clk 0:02:20.8]} 16. gxf3 {[%clk 0:02:26.3]}
16... Nexd4 {[%clk 0:02:20.3]} 17. Bxc7 {[%clk 0:02:23.9]} 17... Qc8 {[%clk
0:02:17.4]} 0-1

[Event "*** SCC Grand Prix: Titled Tuesday Blitz"]
[Site "Chess.com"]
[Date "2020.07.21"]
[Round "7"]
[White "crazychessbr"]
[Black "Chuchofrio1"]
[Result "1-0"]
[WhiteElo "2120"]
[BlackElo "2260"]
[TimeControl "180+1"]
[EndTime "11:12:41 PDT"]
[Termination "crazychessbr won by resignation"]

1. e4 {[%clk 0:03:00.9]} 1... c5 {[%clk 0:03:00]} 2. d3 {[%clk 0:03:01]} 2...
Nc6 {[%clk 0:03:00]} 3. g3 {[%clk 0:03:01.5]} 3... g6 {[%clk 0:02:59.4]} 4. Bg2
{[%clk 0:03:02]} 4... Bg7 {[%clk 0:02:59.6]} 5. f4 {[%clk 0:03:02.5]} 5... d6
{[%clk 0:02:56.6]} 6. Nf3 {[%clk 0:03:02.6]} 6... e6 {[%clk 0:02:56.7]} 7. O-O
{[%clk 0:03:02.3]} 7... Nd4 {[%clk 0:02:56.3]} 8. c3 {[%clk 0:03:00.9]} 8...
Nxf3+ {[%clk 0:02:55.2]} 9. Qxf3 {[%clk 0:03:01.8]} 9... Ne7 {[%clk 0:02:55]}
10. Qf2 {[%clk 0:02:55.9]} 10... O-O {[%clk 0:02:54.4]} 11. Be3 {[%clk
0:02:54.6]} 11... Nc6 {[%clk 0:02:54.1]} 12. Na3 {[%clk 0:02:53.3]} 12... Rb8
{[%clk 0:02:50.5]} 13. d4 {[%clk 0:02:48.3]} 13... cxd4 {[%clk 0:02:49.8]} 14.
cxd4 {[%clk 0:02:48.1]} 14... f5 {[%clk 0:02:32.6]} 15. e5 {[%clk 0:02:45.3]}
15... dxe5 {[%clk 0:02:26.7]} 16. dxe5 {[%clk 0:02:44.7]} 16... Qe7 {[%clk
0:02:21.8]} 17. Bc5 {[%clk 0:02:43]} 17... Qf7 {[%clk 0:02:22.2]} 18. Bxf8
{[%clk 0:02:42.4]} 18... Bxf8 {[%clk 0:02:22.7]} 19. Nc4 {[%clk 0:02:41.7]}
19... Bb4 {[%clk 0:02:09.2]} 20. a3 {[%clk 0:02:34.7]} 20... Be7 {[%clk
0:02:04.6]} 21. Nd6 {[%clk 0:02:33.9]} 21... Qe8 {[%clk 0:02:04.9]} 22. Nxe8
{[%clk 0:02:33.5]} 1-0

[Event "*** SCC Grand Prix: Titled Tuesday Blitz"]
[Site "Chess.com"]
[Date "2020.07.21"]
[Round "7"]
[White "ural58"]
[Black "jb2mix"]
[Result "0-1"]
[WhiteElo "2533"]
[BlackElo "2683"]
[TimeControl "180+1"]
[EndTime "11:13:06 PDT"]
[Termination "jb2mix won by resignation"]

1. e4 {[%clk 0:03:00.9]} 1... e5 {[%clk 0:03:00.1]} 2. f4 {[%clk 0:03:00.1]}
2... Bc5 {[%clk 0:03:00.1]} 3. Nf3 {[%clk 0:02:59.3]} 3... d6 {[%clk 0:03:00.7]}
4. c3 {[%clk 0:02:58.7]} 4... Nf6 {[%clk 0:03:01.2]} 5. fxe5 {[%clk 0:02:55.3]}
5... dxe5 {[%clk 0:03:01.4]} 6. Nxe5 {[%clk 0:02:55.3]} 6... Nxe4 {[%clk
0:03:01.3]} 7. d4 {[%clk 0:02:54.1]} 7... Qh4+ {[%clk 0:02:59.8]} 8. g3 {[%clk
0:02:52.6]} 8... Nxg3 {[%clk 0:02:59.2]} 9. hxg3 {[%clk 0:02:52.4]} 9... Qxh1
{[%clk 0:02:52.3]} 10. dxc5 {[%clk 0:02:52.2]} 10... O-O {[%clk 0:02:52.7]} 11.
Qf3 {[%clk 0:02:49]} 11... Qh2 {[%clk 0:02:48.3]} 12. Qf2 {[%clk 0:02:39.9]}
12... Qh5 {[%clk 0:02:47.2]} 13. Bf4 {[%clk 0:02:16]} 13... Re8 {[%clk 0:02:47]}
14. Qe2 {[%clk 0:01:50.2]} 14... Bg4 {[%clk 0:02:46.6]} 15. Qe3 {[%clk
0:01:38.7]} 15... Nc6 {[%clk 0:02:46.6]} 0-1

[Event "*** SCC Grand Prix: Titled Tuesday Blitz"]
[Site "Chess.com"]
[Date "2020.07.21"]
[Round "7"]
[White "aa175"]
[Black "PavelChernomordik"]
[Result "1-0"]
[WhiteElo "2492"]
[BlackElo "2355"]
[TimeControl "180+1"]
[EndTime "11:13:48 PDT"]
[Termination "aa175 won by resignation"]

1. d4 {[%clk 0:03:00.9]} 1... g6 {[%clk 0:02:59.1]} 2. Bf4 {[%clk 0:03:00.3]}
2... Bg7 {[%clk 0:02:59.2]} 3. e3 {[%clk 0:03:00.7]} 3... d6 {[%clk 0:02:58.8]}
4. Nf3 {[%clk 0:03:01.2]} 4... Nd7 {[%clk 0:02:58.8]} 5. Bc4 {[%clk 0:02:56.4]}
5... e5 {[%clk 0:02:56.6]} 6. dxe5 {[%clk 0:02:54.2]} 6... dxe5 {[%clk
0:02:54.9]} 7. Bg5 {[%clk 0:02:54.8]} 7... f6 {[%clk 0:02:53.7]} 8. Bh4 {[%clk
0:02:54.1]} 8... Qe7 {[%clk 0:02:53.3]} 9. Nc3 {[%clk 0:02:52.9]} 9... c6 {[%clk
0:02:52.6]} 10. Ne4 {[%clk 0:02:50.2]} 10... Bf8 {[%clk 0:02:48.8]} 11. c3
{[%clk 0:02:41.4]} 11... Nh6 {[%clk 0:02:40.5]} 12. Qe2 {[%clk 0:02:07.5]} 12...
Nf5 {[%clk 0:02:35.4]} 13. O-O-O {[%clk 0:02:04.4]} 13... Qg7 {[%clk 0:02:19.7]}
14. Rxd7 {[%clk 0:01:59.8]} 14... Bxd7 {[%clk 0:02:09.2]} 15. Nxf6+ {[%clk
0:01:47.9]} 15... Kd8 {[%clk 0:01:56]} 16. Nh5+ {[%clk 0:01:47.5]} 16... Nxh4
{[%clk 0:01:46.2]} 17. Nxg7 {[%clk 0:01:47.1]} 17... Nxf3 {[%clk 0:01:41.2]} 18.
Qxf3 {[%clk 0:01:47.2]} 18... Bxg7 {[%clk 0:01:39.2]} 19. Qf7 {[%clk 0:01:47.8]}
1-0

[Event "*** SCC Grand Prix: Titled Tuesday Blitz"]
[Site "Chess.com"]
[Date "2020.07.21"]
[Round "7"]
[White "Susal_De_Silva"]
[Black "dolynachess"]
[Result "1-0"]
[WhiteElo "2333"]
[BlackElo "2448"]
[TimeControl "180+1"]
[EndTime "11:13:49 PDT"]
[Termination "Susal_De_Silva won by resignation"]

1. e4 {[%clk 0:03:00.9]} 1... c5 {[%clk 0:02:59.7]} 2. Nf3 {[%clk 0:03:00.9]}
2... d6 {[%clk 0:02:59.6]} 3. Bb5+ {[%clk 0:03:00.9]} 3... Bd7 {[%clk
0:02:59.3]} 4. Bxd7+ {[%clk 0:03:00.6]} 4... Qxd7 {[%clk 0:03:00.2]} 5. c4
{[%clk 0:03:00.4]} 5... Nc6 {[%clk 0:03:00.5]} 6. Nc3 {[%clk 0:03:00.6]} 6... g6
{[%clk 0:03:00.9]} 7. d4 {[%clk 0:02:59.5]} 7... cxd4 {[%clk 0:02:59.8]} 8. Nxd4
{[%clk 0:03:00.2]} 8... Bg7 {[%clk 0:03:00.6]} 9. Be3 {[%clk 0:03:00.4]} 9...
Nf6 {[%clk 0:03:00.3]} 10. f3 {[%clk 0:03:00.5]} 10... O-O {[%clk 0:03:00.3]}
11. O-O {[%clk 0:03:00.6]} 11... Rfc8 {[%clk 0:03:00.5]} 12. b3 {[%clk
0:02:59.8]} 12... a6 {[%clk 0:03:00.2]} 13. Na4 {[%clk 0:02:57.6]} 13... Qd8
{[%clk 0:02:55.1]} 14. Qd2 {[%clk 0:02:34.9]} 14... Nd7 {[%clk 0:02:49]} 15.
Rac1 {[%clk 0:02:29.8]} 15... Rab8 {[%clk 0:02:47]} 16. Nxc6 {[%clk 0:02:25.3]}
16... Rxc6 {[%clk 0:02:45.5]} 17. Bd4 {[%clk 0:02:22.7]} 17... Rbc8 {[%clk
0:02:39]} 18. Bxg7 {[%clk 0:02:22]} 18... Kxg7 {[%clk 0:02:39.9]} 19. Nc3 {[%clk
0:02:21.7]} 19... b5 {[%clk 0:02:29.1]} 20. cxb5 {[%clk 0:02:18.2]} 20... axb5
{[%clk 0:02:27.3]} 21. Kh1 {[%clk 0:02:05.5]} 21... Qc7 {[%clk 0:02:16.4]} 22.
Ne2 {[%clk 0:01:41.2]} 22... Qa7 {[%clk 0:02:08.8]} 23. Rxc6 {[%clk 0:01:37.6]}
23... Rxc6 {[%clk 0:02:08.8]} 24. Qd4+ {[%clk 0:01:35.2]} 24... Qxd4 {[%clk
0:02:07]} 25. Nxd4 {[%clk 0:01:35.9]} 25... Rc2 {[%clk 0:02:06.7]} 26. Nxc2
{[%clk 0:01:34.8]} 1-0

[Event "*** SCC Grand Prix: Titled Tuesday Blitz"]
[Site "Chess.com"]
[Date "2020.07.21"]
[Round "7"]
[White "Harry_Rakkel"]
[Black "MidnightFox"]
[Result "1-0"]
[WhiteElo "2543"]
[BlackElo "2389"]
[TimeControl "180+1"]
[EndTime "11:13:58 PDT"]
[Termination "Harry_Rakkel won by resignation"]

1. e4 {[%clk 0:03:00.9]} 1... e5 {[%clk 0:02:57.2]} 2. Nf3 {[%clk 0:03:00]} 2...
Nc6 {[%clk 0:02:57.7]} 3. Bb5 {[%clk 0:02:59.4]} 3... a6 {[%clk 0:02:58.1]} 4.
Ba4 {[%clk 0:02:59.2]} 4... Nf6 {[%clk 0:02:58.1]} 5. O-O {[%clk 0:02:59]} 5...
b5 {[%clk 0:02:56.8]} 6. Bb3 {[%clk 0:02:58.3]} 6... Bc5 {[%clk 0:02:57.4]} 7.
d3 {[%clk 0:02:55.4]} 7... d6 {[%clk 0:02:56.2]} 8. a4 {[%clk 0:02:54.6]} 8...
Rb8 {[%clk 0:02:56]} 9. axb5 {[%clk 0:02:53.1]} 9... axb5 {[%clk 0:02:56.9]} 10.
Bg5 {[%clk 0:02:49.4]} 10... h6 {[%clk 0:02:54]} 11. Bh4 {[%clk 0:02:48.5]}
11... g5 {[%clk 0:02:50.7]} 12. Bg3 {[%clk 0:02:44.5]} 12... h5 {[%clk
0:02:50.6]} 13. h4 {[%clk 0:02:41.6]} 13... Bg4 {[%clk 0:02:36.7]} 14. c3 {[%clk
0:02:22.7]} 14... Qe7 {[%clk 0:02:06.3]} 15. Nbd2 {[%clk 0:02:16]} 15... Rg8
{[%clk 0:01:27]} 16. hxg5 {[%clk 0:02:13]} 16... Nh7 {[%clk 0:01:24.4]} 17. Bh4
{[%clk 0:02:11.6]} 17... Nxg5 {[%clk 0:01:24]} 18. Kh1 {[%clk 0:01:54.3]} 18...
f6 {[%clk 0:01:17.5]} 19. Bxg8 {[%clk 0:01:52.3]} 1-0

[Event "*** SCC Grand Prix: Titled Tuesday Blitz"]
[Site "Chess.com"]
[Date "2020.07.21"]
[Round "7"]
[White "Fandorine"]
[Black "ManuDavid2910"]
[Result "1-0"]
[WhiteElo "2929"]
[BlackElo "2698"]
[TimeControl "180+1"]
[EndTime "11:14:18 PDT"]
[Termination "Fandorine won by resignation"]

1. e4 {[%clk 0:03:00.9]} 1... c5 {[%clk 0:02:59.7]} 2. Nf3 {[%clk 0:03:00.9]}
2... Nc6 {[%clk 0:03:00.1]} 3. Bb5 {[%clk 0:03:00.6]} 3... e6 {[%clk 0:03:00.3]}
4. Bxc6 {[%clk 0:03:00.1]} 4... bxc6 {[%clk 0:03:00.4]} 5. b3 {[%clk 0:03:00.4]}
5... d5 {[%clk 0:03:00.1]} 6. d3 {[%clk 0:03:00.4]} 6... c4 {[%clk 0:02:59.7]}
7. dxc4 {[%clk 0:02:49.5]} 7... Ba6 {[%clk 0:02:52.5]} 8. O-O {[%clk 0:02:34.3]}
8... Nf6 {[%clk 0:02:46.1]} 9. e5 {[%clk 0:02:17.4]} 9... Nd7 {[%clk 0:02:44.6]}
10. Re1 {[%clk 0:02:13.6]} 10... dxc4 {[%clk 0:02:42.1]} 11. Ba3 {[%clk
0:02:12.3]} 11... Be7 {[%clk 0:02:13.5]} 12. Bxe7 {[%clk 0:02:10.5]} 12... Qxe7
{[%clk 0:02:14.4]} 13. Nc3 {[%clk 0:02:09]} 13... O-O {[%clk 0:02:12.2]} 14. Ne4
{[%clk 0:02:08.3]} 14... Nb6 {[%clk 0:02:04.2]} 15. Qd6 {[%clk 0:02:03.9]} 15...
Qe8 {[%clk 0:02:03.9]} 16. Qa3 {[%clk 0:02:00.8]} 16... Bb7 {[%clk 0:01:58]} 17.
Qc5 {[%clk 0:01:52.4]} 17... Ba6 {[%clk 0:01:51.3]} 18. h4 {[%clk 0:01:46]}
18... Rd8 {[%clk 0:01:29.1]} 19. Qa5 {[%clk 0:01:43.7]} 19... Bc8 {[%clk
0:01:24]} 20. Qxa7 {[%clk 0:01:41.4]} 20... Nd5 {[%clk 0:01:23.7]} 21. Nd6
{[%clk 0:01:41.7]} 1-0

[Event "*** SCC Grand Prix: Titled Tuesday Blitz"]
[Site "Chess.com"]
[Date "2020.07.21"]
[Round "7"]
[White "zaur-mammadov"]
[Black "MergenKakabaev"]
[Result "1-0"]
[WhiteElo "2668"]
[BlackElo "2498"]
[TimeControl "180+1"]
[EndTime "11:14:24 PDT"]
[Termination "zaur-mammadov won by resignation"]

1. e4 {[%clk 0:03:00.9]} 1... e5 {[%clk 0:02:59.4]} 2. Nf3 {[%clk 0:02:58.9]}
2... Nc6 {[%clk 0:02:58.5]} 3. Nc3 {[%clk 0:02:59.4]} 3... Nf6 {[%clk
0:02:57.9]} 4. Be2 {[%clk 0:02:59.7]} 4... Bc5 {[%clk 0:02:56]} 5. Nxe5 {[%clk
0:02:56.2]} 5... Nxe5 {[%clk 0:02:55.9]} 6. d4 {[%clk 0:02:55.8]} 6... Bd6
{[%clk 0:02:56]} 7. dxe5 {[%clk 0:02:55.7]} 7... Bxe5 {[%clk 0:02:56.9]} 8. Nb5
{[%clk 0:02:56.1]} 8... a6 {[%clk 0:02:50.6]} 9. f4 {[%clk 0:02:55.6]} 9... axb5
{[%clk 0:02:34.2]} 10. fxe5 {[%clk 0:02:54.1]} 10... Nxe4 {[%clk 0:02:34.3]} 11.
Qd4 {[%clk 0:02:50.3]} 11... Ng5 {[%clk 0:02:29.5]} 12. O-O {[%clk 0:01:51.2]}
12... Ne6 {[%clk 0:02:28.3]} 13. Qe4 {[%clk 0:01:50.7]} 13... O-O {[%clk
0:02:26.9]} 14. Bd3 {[%clk 0:01:50.8]} 14... g6 {[%clk 0:02:25.1]} 15. Bh6
{[%clk 0:01:51]} 15... Ng7 {[%clk 0:02:20.4]} 16. Rf6 {[%clk 0:01:47.7]} 16...
d5 {[%clk 0:02:18.4]} 17. Qd4 {[%clk 0:01:34.2]} 17... Be6 {[%clk 0:02:14.2]}
18. Raf1 {[%clk 0:01:21.4]} 18... Rxa2 {[%clk 0:02:08.7]} 19. h4 {[%clk
0:01:15.6]} 19... c6 {[%clk 0:02:01.7]} 20. h5 {[%clk 0:01:09.2]} 20... Nxh5
{[%clk 0:01:58.6]} 21. Rxe6 {[%clk 0:01:02.4]} 1-0